bitfinex-derivatives/quotes_SOLF0:USTF0_20241005
["timestamp","ask_amount","ask_price","bid_price","bid_amount"]
[1728116806366,0.12502,144.77,144.76,8.3738]
[1728116806672,0.12502,144.77,144.76,11.83517916]
[1728116807260,0.12502,144.77,144.76,8.3738]
[1728116807673,0.12502,144.77,144.76,11.86531021]
[1728116808761,0.12502,144.77,144.76,8.3738]
[1728116808964,2e-05,144.77,144.76,8.3738]
[1728116809164,2e-05,144.77,144.76,11.78834997]
[1728116809565,2e-05,144.77,144.76,8.3738]
[1728116809767,2e-05,144.77,144.76,11.87773429]
[1728116810868,2e-05,144.77,144.76,8.3738]
[1728116811270,2e-05,144.77,144.76,11.90051176]
[1728116811673,0.12502,144.83,144.76,25.67]
[1728116811880,0.12502,144.83,144.82,3.4523]
[1728116812076,0.12502,144.83,144.82,8.3723]
[1728116813975,0.12502,144.83,144.82,3.4523]
[1728116814180,0.12502,144.83,144.82,8.3723]
[1728116816180,0.12502,144.83,144.81,3.4525]
[1728116816476,0.12502,144.83,144.82,4.92]
[1728116816983,0.12502,144.83,144.82,8.3723]
[1728116817279,0.12502,144.83,144.82,3.4523]
[1728116817476,0.12502,144.83,144.82,8.4123]
[1728116821784,0.12502,144.83,144.73,21.04032264]
[1728116821785,0.12502,144.83,144.81,3.4525]
[1728116821989,0.12502,144.83,144.73,7.20662264]
[1728116822289,1.43062,144.83,144.74,4.96]
[1728116822678,3.4526,144.81,144.74,4.96]
[1728116822875,1.43062,144.83,144.74,4.96]
[1728116823080,4.88272,144.83,144.79,3.453]
[1728116823382,4.88272,144.83,144.74,25.71]
[1728116823383,1.43062,144.83,144.8,4.96]
[1728116824392,1.43062,144.83,144.8,8.4128]
[1728116825486,0.12502,144.83,144.8,8.4128]
[1728116826589,0.12502,144.83,144.8,4.96]
[1728116826788,0.12502,144.83,144.81,3.4526]
[1728116827496,0.12502,144.83,144.82,3.4523]
[1728116827679,0.12502,144.83,144.8,4.96]
[1728116828586,0.12502,144.83,144.82,3.4523]
[1728116828789,0.12502,144.83,144.82,4.96]
[1728116831993,0.12502,144.83,144.82,8.4123]
[1728116833796,0.12502,144.83,144.8,4.96]
[1728116834486,0.12502,144.83,144.8,8.4127]
[1728116835186,0.12502,144.83,144.8,4.96]
[1728116835388,0.12502,144.83,144.81,3.4525]
[1728116837198,0.12502,144.83,144.8,4.96]
[1728116837991,0.12502,144.83,144.72,7.20751819]
[1728116838195,4.96,144.82,144.72,4.96]
[1728116838390,1.385,144.81,144.7,94.26336337]
[1728116838594,3.4543,144.74,144.7,97.71846337]
[1728116838804,3.4543,144.74,144.72,4.96]
[1728116839098,3.4545,144.73,144.72,4.96]
[1728116839505,3.4545,144.73,144.72,2.8129]
[1728116840013,3.4543,144.74,144.72,2.8129]
[1728116840194,1.385,144.73,144.72,2.8129]
[1728116841695,4.8395,144.73,144.69,8.4154]
[1728116841895,1.385,144.73,144.69,4.96]
[1728116842997,1.385,144.73,144.7,3.4552]
[1728116843191,1.385,144.73,144.69,4.96]
[1728116843796,4.8396,144.73,144.69,8.4153]
[1728116844099,1.385,144.73,144.69,4.96]
[1728116845105,1.385,144.73,144.7,3.4552]
[1728116847294,3.4547,144.72,144.69,4.96]
[1728116847503,1.385,144.73,144.69,4.96]
[1728116847704,1.385,144.73,144.65,0.12502]
[1728116848008,4.8396,144.73,144.69,8.5553]
[1728116848602,1.385,144.73,144.69,5.1]
[1728116848806,1.385,144.73,144.7,3.4551]
[1728116850302,4.8395,144.73,144.69,8.5553]
[1728116851003,4.8395,144.73,144.69,5.1]
[1728116851004,1.385,144.73,144.69,5.1]
[1728116851813,1.385,144.73,144.7,3.455]
[1728116857524,4.8395,144.73,144.7,3.455]
[1728116857817,1.385,144.73,144.7,3.455]
[1728116859119,4.8395,144.73,144.7,3.455]
[1728116860824,1.385,144.73,144.7,3.455]
[1728116863525,1.385,144.73,144.67,5.7513]
[1728116863726,1.385,144.73,144.71,3.57992]
[1728116864122,1.385,144.73,144.71,0.12502]
[1728116866131,1.385,144.73,144.72,3.4547]
[1728116874536,1.385,144.73,144.71,0.12502]
[1728116874740,1.385,144.73,144.71,3.57992]
[1728116877141,4.8395,144.73,144.71,0.12502]
[1728116878233,1.385,144.73,144.71,0.12502]
[1728116878435,3.4547,144.72,144.71,0.12502]
[1728116880135,3.4552,144.7,144.65,0.12502]
[1728116880342,5.0,144.7,144.65,0.12502]
[1728116880847,3.4558,144.68,144.65,0.12502]
[1728116881041,5.0,144.7,144.65,0.12502]
[1728116881245,1.3254,144.69,144.65,0.12502]
[1728116881446,3.4561,144.67,144.65,0.12502]
[1728116881642,8.4561,144.67,144.65,0.12502]
[1728116882043,3.4562,144.66,144.65,0.12502]
[1728116884346,8.4562,144.66,144.65,0.12502]
[1728116884939,5.0,144.66,144.59,0.12502]
[1728116885248,3.4566,144.65,144.61,3.4573]
[1728116886452,5.0,144.66,144.61,3.4573]
[1728116886652,3.4567,144.64,144.61,3.4573]
[1728116887950,3.4567,144.64,144.6,3.4575]
[1728116890552,3.4576,144.6,144.59,0.12502]
[1728116890947,5.0,144.61,144.5,6.4219]
[1728116891143,3.4587,144.56,144.52,3.4595]
[1728116891351,8.54195465,144.57,144.5,5.0]
[1728116891554,5.0,144.57,144.5,5.0]
[1728116891756,3.4588,144.55,144.51,3.4596]
[1728116892256,5.0,144.56,144.5,5.0]
[1728116892457,5.0,144.57,144.5,5.0]
[1728116893053,1.3332,144.6,144.5,5.0]
[1728116893257,5.0,144.59,144.5,5.0]
[1728116894755,5.0,144.59,144.55,3.4586]
[1728116894756,8.458,144.59,144.55,3.4586]
[1728116895152,8.458,144.59,144.51,1.3973]
[1728116895456,8.458,144.59,144.56,3.4585]
[1728116895655,3.458,144.59,144.51,1.3973]
[1728116897151,3.458,144.59,144.55,3.4587]
[1728116899363,8.4574,144.61,144.57,3.4582]
[1728116899949,3.4576,144.6,144.56,3.4585]
[1728116904660,5.0,144.61,144.53,5.12502]
[1728116904857,3.4576,144.6,144.56,3.4584]
[1728116907665,3.458,144.59,144.55,3.4587]
[1728116908462,5.0,144.61,144.53,8.58412]
[1728116908463,3.4585,144.57,144.53,8.58412]
[1728116908954,3.4585,144.57,144.53,5.12502]
[1728116909160,3.4585,144.57,144.54,3.459]
[1728116915766,3.4585,144.57,144.54,4.1103]
[1728116919167,4.98,144.59,144.54,0.6513]
[1728116919373,3.4582,144.58,144.55,3.4588]
[1728116921270,4.98,144.59,144.56,3.4584]
[1728116921671,8.5,144.57,144.56,3.4584]
[1728116929681,8.5,144.57,144.55,3.4587]
[1728116929976,8.5,144.56,144.55,3.4587]
[1728116937679,8.5,144.56,144.53,0.12502]
[1728116937882,8.5,144.54,144.53,0.12502]
[1728116938386,8.5,144.54,144.53,3.58422]
[1728116940387,8.5,144.54,144.53,0.12502]
[1728116945383,8.5,144.54,144.47,0.12502]
[1728116945589,8.5,144.48,144.41,13.52502]
[1728116945785,7.63192,144.53,144.45,3.461]
[1728116945786,8.5,144.46,144.45,3.461]
[1728116946684,8.5,144.46,144.41,5.02502]
[1728116946893,8.5,144.45,144.41,0.12502]
[1728116947189,3.50162528,144.51,144.41,0.12502]
[1728116947396,8.3601,144.5,144.46,3.4608]
[1728116947580,8.5,144.47,144.46,3.4608]
[1728116947781,8.5,144.47,144.43,8.5]
[1728116947993,8.5,144.47,144.45,3.4612]
[1728116949095,8.5,144.46,144.45,3.4612]
[1728116949791,3.45326229,144.52,144.45,3.4612]
[1728116949986,8.5,144.47,144.45,3.4612]
[1728116950693,8.5,144.46,144.44,3.4614]
[1728116951089,8.5,144.46,144.42,4.9]
[1728116951397,8.5,144.46,144.43,3.4616]
[1728116952194,8.5,144.44,144.43,3.4616]
[1728116952695,8.5,144.45,144.44,3.4613]
[1728116952889,4.9,144.48,144.42,4.9]
[1728116952890,8.5,144.47,144.42,13.4]
[1728116953293,8.5,144.47,144.44,3.4612]
[1728116953594,8.5,144.47,144.42,4.9]
[1728116954385,8.5,144.46,144.44,3.4613]
[1728116954585,8.5,144.46,144.42,4.9]
[1728116955792,8.5,144.45,144.44,3.4613]
[1728116956498,8.5,144.45,144.43,3.4616]
[1728116957299,8.5,144.44,144.42,4.9]
[1728116957600,8.5,144.43,144.41,3.58712]
[1728116958291,8.5,144.42,144.41,0.12502]
[1728116966012,2.8372,144.48,144.42,3.4619]
[1728116966013,8.5,144.43,144.42,3.4619]
[1728116966313,8.5,144.43,144.41,0.12502]
[1728116967915,8.5,144.43,144.42,3.4619]
[1728116968420,8.5,144.43,144.41,0.12502]
[1728116968618,8.5,144.43,144.41,3.58712]
[1728116970719,1.4219,144.48,144.42,8.5]
[1728116970918,9.9219,144.48,144.42,8.5]
[1728116971718,9.9219,144.48,144.45,3.461]
[1728116971924,9.9219,144.48,144.42,8.5]
[1728116973025,9.9219,144.48,144.46,3.4609]
[1728116974324,1.4219,144.48,144.46,3.4609]
[1728116974527,8.5,144.47,144.46,3.4609]
[1728116975722,3.4830139,144.52,144.43,4.96]
[1728116975929,8.4195,144.52,144.49,3.4602]
[1728116976226,8.5,144.5,144.45,8.5]
[1728116977017,8.5,144.5,144.48,3.4604]
[1728116977630,8.5,144.49,144.48,3.4604]
[1728116986331,8.5,144.49,144.43,13.46]
[1728116986535,8.5,144.47,144.43,13.46]
[1728116987136,8.5,144.47,144.46,3.4609]
[1728116987940,8.5,144.47,144.43,4.96]
[1728116988334,8.5,144.47,144.42,8.5]
[1728116988644,8.5,144.47,144.45,3.461]
[1728117000446,8.5,144.47,144.46,3.4609]
[1728117000948,8.5,144.47,144.42,4.96]
[1728117001339,8.5,144.45,144.42,4.96]
[1728117001848,8.5,144.45,144.43,3.4617]
[1728117002147,8.5,144.44,144.43,3.4617]
[1728117002448,8.5,144.44,144.42,3.4618]
[1728117005945,8.5,144.44,144.43,3.4617]
[1728117012559,1.3559,144.48,144.42,26.40217077]
[1728117012849,8.5,144.47,144.43,17.90217077]
[1728117013056,8.5,144.45,144.43,17.90217077]
[1728117013556,8.5,144.44,144.43,21.36367077]
[1728117013760,8.5,144.44,144.42,17.90217077]
[1728117014252,8.5,144.44,144.42,21.36397077]
[1728117016857,8.5,144.43,144.42,21.36397077]
[1728117017661,8.5,144.43,144.42,17.90217077]
[1728117019676,8.5,144.43,144.41,3.58712]
[1728117022566,8.5,144.42,144.41,3.58712]
[1728117024066,6.2759,144.48,144.42,0.6513]
[1728117024266,8.5,144.47,144.42,0.6513]
[1728117024467,8.5,144.47,144.42,14.0713]
[1728117024661,8.5,144.47,144.46,3.4609]
[1728117024967,8.5,144.47,144.42,14.0713]
[1728117025670,8.5,144.48,144.44,8.5]
[1728117026068,8.5,144.47,144.46,3.4608]
[1728117026266,4.92,144.51,144.43,11.3069]
[1728117026467,8.5,144.48,144.43,11.3069]
[1728117027561,8.5,144.48,144.47,3.4607]
[1728117028762,8.5,144.49,144.48,3.4602]
[1728117028958,59.37496293,144.53,144.47,8.5]
[1728117029164,8.5,144.51,144.47,8.5]
[1728117029566,8.5,144.51,144.49,3.46]
[1728117029963,8.5,144.5,144.49,3.46]
[1728117030868,59.37496293,144.53,144.47,8.5]
[1728117031171,8.5,144.52,144.47,8.5]
[1728117031469,59.37496293,144.53,144.45,4.94]
[1728117031470,8.62502,144.53,144.48,8.5]
[1728117031771,8.62502,144.53,144.51,3.4596]
[1728117032171,8.5,144.52,144.51,3.4596]
[1728117032471,8.5,144.52,144.5,3.4599]
[1728117034065,8.5,144.52,144.48,4.94]
[1728117034268,8.5,144.52,144.51,3.4597]
[1728117040871,8.62502,144.53,144.48,4.94]
[1728117041079,8.62502,144.53,144.52,3.4595]
[1728117041576,8.62502,144.53,144.5,3.4598]
[1728117041775,8.5,144.51,144.48,4.94]
[1728117042278,8.5,144.51,144.5,3.46]
[1728117043073,0.12502,144.53,144.52,3.4595]
[1728117043271,8.62502,144.53,144.52,3.4595]
[1728117046277,0.12502,144.53,144.52,3.4595]
[1728117046486,8.62502,144.53,144.52,3.4595]
[1728117048877,8.62502,144.53,144.5,3.4598]
[1728117049080,8.5,144.51,144.5,3.4598]
[1728117049883,0.12502,144.53,144.48,13.44]
[1728117050083,8.62502,144.53,144.52,3.4595]
[1728117053385,0.12502,144.53,144.52,3.4595]
[1728117055476,9.7165,144.58,144.52,3.4595]
[1728117055477,8.5,144.56,144.52,11.9595]
[1728117055683,8.5,144.57,144.56,3.4585]
[1728117058179,57.91300073,144.61,144.58,3.4581]
[1728117058389,8.62502,144.59,144.58,3.4581]
[1728117058888,0.12502,144.59,144.58,3.4581]
[1728117061083,8.62502,144.59,144.57,8.3382]
[1728117061282,8.5,144.58,144.57,4.88]
[1728117061581,8.5,144.58,144.54,4.88]
[1728117061778,8.5,144.55,144.54,4.88]
[1728117062485,8.5,144.55,144.54,8.3389]
[1728117063486,3.4583,144.58,144.54,8.3389]
[1728117063792,8.5,144.56,144.54,8.3389]
[1728117063985,0.12502,144.59,144.54,4.88]
[1728117064191,8.5,144.57,144.56,3.4585]
[1728117065281,0.12502,144.59,144.56,3.4585]
[1728117065487,0.12502,144.59,144.54,4.88]
[1728117065686,8.62502,144.59,144.57,3.4583]
[1728117066085,0.12502,144.59,144.54,4.88]
[1728117066286,8.62502,144.59,144.58,3.4581]
[1728117066693,0.12502,144.59,144.58,3.4581]
[1728117068288,0.12502,144.59,144.58,11.9581]
[1728117068489,0.12502,144.59,144.58,3.4581]
[1728117069191,0.12502,144.59,144.58,11.9581]
[1728117071394,0.12502,144.65,144.58,8.5]
[1728117071596,8.5,144.64,144.59,8.5]
[1728117071896,8.5,144.64,144.6,4.88]
[1728117072692,0.12502,144.65,144.62,3.4569]
[1728117072899,8.62502,144.65,144.62,3.4569]
[1728117073287,8.62502,144.65,144.61,8.5]
[1728117073491,0.12502,144.65,144.61,8.5]
[1728117075503,0.12502,144.65,144.64,3.4566]
[1728117076195,0.12502,144.65,144.64,11.9566]
[1728117076391,0.12502,144.65,144.64,3.4566]
[1728117076597,8.62502,144.65,144.63,4.88]
[1728117076793,11.9566,144.64,144.6,4.88]
[1728117076996,0.12502,144.65,144.6,4.88]
[1728117076997,8.5,144.62,144.6,4.88]
[1728117077201,8.5,144.62,144.61,3.4574]
[1728117077498,0.12502,144.65,144.61,3.4574]
[1728117077696,0.12502,144.65,144.6,4.88]
[1728117077901,8.5,144.64,144.6,4.88]
[1728117078104,0.12502,144.65,144.6,13.38]
[1728117078307,8.62502,144.65,144.6,13.38]
[1728117078807,8.62502,144.65,144.62,3.457]
[1728117079008,8.62502,144.65,144.6,4.88]
[1728117079211,0.12502,144.65,144.6,4.88]
[1728117079505,8.62502,144.65,144.61,8.5]
[1728117080106,0.12502,144.65,144.64,3.4566]
[1728117080907,0.12502,144.65,144.64,11.9566]
[1728117081406,1.45642,144.71,144.64,8.5]
[1728117081711,1.45642,144.71,144.68,3.4555]
[1728117082009,1.45642,144.71,144.69,4.88]
[1728117083611,8.5,144.7,144.69,4.88]
[1728117088011,1.45642,144.71,144.69,4.88]
[1728117089108,9.95642,144.71,144.69,4.88]
[1728117089505,0.12502,144.71,144.69,8.3354]
[1728117089710,0.12502,144.71,144.69,4.88]
[1728117091221,8.62502,144.71,144.69,4.88]
[1728117092110,12.08012,144.71,144.69,4.88]
[1728117093714,8.62502,144.71,144.6,29.02]
[1728117093914,3.4558,144.68,144.64,11.9565]
[1728117094224,3.4558,144.68,144.65,4.94]
[1728117095015,3.4558,144.68,144.65,8.3963]
[1728117095415,3.4558,144.68,144.65,3.4563]
[1728117095816,3.4558,144.68,144.65,4.94]
[1728117096322,11.9561,144.67,144.6,1.3451]
[1728117096523,11.9561,144.67,144.62,11.9569]
[1728117096713,11.9561,144.67,144.62,3.4569]
[1728117096913,11.9561,144.67,144.62,11.9569]
[1728117097208,11.9561,144.67,144.63,3.4568]
[1728117097415,11.9561,144.67,144.64,4.94]
[1728117097614,3.4563,144.66,144.64,4.94]
[1728117098210,8.5,144.67,144.64,4.94]
[1728117098623,8.5,144.67,144.64,8.3965]
[1728117098823,11.9561,144.67,144.64,4.94]
[1728117099121,3.4561,144.67,144.64,4.94]
[1728117099420,11.9561,144.67,144.64,4.94]
[1728117100019,8.5,144.67,144.64,8.3966]
[1728117101320,1.3608,144.69,144.66,3.4561]
[1728117101321,13.3163,144.69,144.66,3.4561]
[1728117101621,13.3163,144.69,144.65,8.5]
[1728117102124,13.3163,144.69,144.65,11.9563]
[1728117103920,13.3163,144.69,144.66,3.4561]
[1728117107124,13.3163,144.69,144.65,11.9563]
[1728117107319,13.3163,144.69,144.64,4.94]
[1728117107320,8.5,144.68,144.64,4.94]
[1728117107523,1.3608,144.69,144.62,8.5]
[1728117107524,8.5,144.67,144.62,8.5]
[1728117107721,8.5,144.66,144.6,8.5]
[1728117107928,8.5,144.64,144.62,4.94]
[1728117108825,8.5,144.64,144.62,8.397]
[1728117109425,8.5,144.65,144.62,8.397]
[1728117110322,11.9562,144.66,144.63,3.4568]
[1728117112229,11.9562,144.66,144.62,8.397]
[1728117117930,11.9562,144.66,144.62,4.94]
[1728117118232,11.9562,144.66,144.63,3.4568]
[1728117118830,8.5,144.66,144.63,3.4568]
[1728117119137,8.5,144.66,144.62,13.44]
[1728117119337,8.5,144.66,144.64,3.4566]
[1728117122132,9.8608,144.69,144.65,4.9]
[1728117122537,13.3163,144.69,144.66,3.456]
[1728117123730,4.8163,144.69,144.66,3.456]
[1728117123932,13.3163,144.69,144.66,3.456]
[1728117126139,9.8608,144.69,144.67,3.4557]
[1728117126535,9.8608,144.69,144.65,13.4]
[1728117127137,12.08002,144.71,144.67,3.4557]
[1728117127433,8.5,144.69,144.66,4.9]
[1728117128139,8.5,144.69,144.66,8.356]
[1728117128638,11.9558,144.68,144.65,4.9]
[1728117130434,11.9558,144.68,144.64,4.1079]
[1728117130639,11.9558,144.68,144.64,9.0079]
[1728117134440,8.5,144.67,144.64,0.6513]
[1728117134646,11.9564,144.65,144.64,0.6513]
[1728117140049,3.4564,144.65,144.64,0.6513]
[1728117141051,1.3943,144.7,144.64,0.6513]
[1728117141245,11.9558,144.68,144.65,3.4564]
[1728117141645,3.4562,144.66,144.64,5.5513]
[1728117142246,3.4562,144.66,144.64,0.6513]
[1728117142549,3.4564,144.65,144.64,0.6513]
[1728117144151,12.01969592,144.65,144.59,5.02502]
[1728117144356,12.01969592,144.65,144.59,0.12502]
[1728117144357,11.9575,144.61,144.59,0.12502]
[1728117144652,8.5,144.6,144.59,0.12502]
[1728117145652,11.9576,144.6,144.59,0.12502]
[1728117146457,1.4202,144.64,144.59,0.12502]
[1728117146458,8.5,144.61,144.59,0.12502]
[1728117146645,11.9573,144.62,144.59,0.12502]
[1728117146849,8.5,144.62,144.59,0.12502]
[1728117147156,8.5,144.63,144.59,0.12502]
[1728117147351,11.957,144.63,144.59,3.58282]
[1728117147860,3.4565,144.65,144.61,3.4572]
[1728117148162,11.9565,144.65,144.6,13.4]
[1728117149866,11.9565,144.65,144.61,3.4573]
[1728117151258,11.9565,144.65,144.6,13.4]
[1728117151259,8.5,144.65,144.62,3.457]
[1728117152055,8.5,144.65,144.61,3.4572]
[1728117152362,8.5,144.65,144.6,13.4]
[1728117152865,8.5,144.66,144.6,13.4]
[1728117153554,11.9562,144.66,144.62,3.4569]
[1728117155065,8.5,144.66,144.63,3.4569]
[1728117156065,11.9562,144.66,144.63,3.4569]
[1728117156565,8.5,144.66,144.63,3.4569]
[1728117158067,11.9562,144.66,144.63,3.4569]
[1728117158362,1.3803,144.69,144.65,3.4564]
[1728117158560,1.3803,144.69,144.64,8.5]
[1728117158561,8.5,144.68,144.64,8.5]
[1728117158762,13.3359,144.69,144.64,13.38]
[1728117159960,3.4557,144.68,144.64,13.38]
[1728117160360,8.5,144.66,144.64,4.88]
[1728117162167,11.9562,144.66,144.64,4.88]
[1728117162471,8.5,144.66,144.64,4.88]
[1728117165166,24.1647,144.9,144.64,13.38]
[1728117165365,8.62502,144.71,144.66,8.5]
[1728117165671,8.62502,144.71,144.67,4.88]
[1728117167164,12.08002,144.71,144.68,3.4557]
[1728117167466,8.5,144.7,144.67,4.88]
[1728117167671,11.9554,144.7,144.67,4.88]
[1728117169875,8.5,144.7,144.67,8.3359]
[1728117170577,8.5,144.7,144.67,4.88]
[1728117171772,8.5,144.7,144.67,8.3358]
[1728117171974,8.5,144.7,144.67,4.88]
[1728117172171,0.12502,144.71,144.67,4.88]
[1728117172172,8.5,144.68,144.67,4.88]
[1728117172370,11.9557,144.68,144.64,3.4564]
[1728117172571,11.9557,144.68,144.64,8.3364]
[1728117173673,8.5,144.68,144.64,4.88]
[1728117174175,8.5,144.66,144.64,4.88]
[1728117175169,8.5,144.66,144.62,3.457]
[1728117175170,8.5,144.65,144.62,3.457]
[1728117175366,8.5,144.65,144.62,8.337]
[1728117177774,3.4567,144.64,144.62,4.88]
[1728117177968,8.5,144.65,144.62,4.88]
[1728117178672,11.9566,144.65,144.62,4.88]
[1728117178878,8.5,144.64,144.62,4.88]
[1728117179874,3.4565,144.65,144.62,4.88]
[1728117179875,11.9565,144.65,144.62,4.88]
[1728117180070,11.9565,144.65,144.62,8.3371]
[1728117181173,11.9565,144.65,144.62,3.4571]
[1728117181578,8.5,144.65,144.63,3.4568]
[1728117181875,1.3207,144.7,144.63,8.5]
[1728117182075,8.5,144.69,144.64,13.4]
[1728117182276,4.776,144.7,144.64,13.4]
[1728117182478,8.5,144.69,144.67,0.6513]
[1728117182883,8.5,144.69,144.67,4.1072]
[1728117183779,4.776,144.7,144.67,4.1072]
[1728117183985,8.5,144.69,144.67,4.1072]
[1728117184286,8.5,144.7,144.67,0.6513]
[1728117184579,12.08012,144.71,144.68,3.4557]
[1728117186883,8.62502,144.71,144.67,5.5513]
[1728117187089,8.62502,144.71,144.68,3.4556]
[1728117189686,0.12502,144.71,144.67,5.5513]
[1728117189996,8.62502,144.71,144.67,5.5513]
[1728117190687,8.62502,144.71,144.68,3.4556]
[1728117191191,8.62502,144.71,144.67,9.0072]
[1728117191192,8.5,144.69,144.67,9.0072]
[1728117193082,8.5,144.69,144.68,3.4557]
[1728117193982,8.62502,144.71,144.68,3.4557]
[1728117194990,12.08002,144.71,144.68,3.4557]
[1728117197896,3.58002,144.71,144.68,3.4557]
[1728117198096,8.5,144.7,144.68,3.4557]
[1728117198294,8.62502,144.71,144.69,3.4554]
[1728117198692,0.12502,144.71,144.69,3.4554]
[1728117198893,8.5,144.7,144.69,3.4554]
[1728117199799,8.5,144.7,144.67,4.9]
[1728117200089,8.5,144.7,144.68,3.4556]
[1728117201995,8.5,144.69,144.67,4.9]
[1728117202589,8.5,144.69,144.67,8.3558]
[1728117203184,0.12502,144.71,144.67,8.3558]
[1728117203185,3.58012,144.71,144.67,8.3558]
[1728117203393,8.5,144.7,144.67,8.3558]
[1728117203992,3.58012,144.71,144.67,8.3558]
[1728117204194,8.5,144.7,144.67,4.9]
[1728117204394,8.62502,144.71,144.69,3.4554]
[1728117204592,0.12502,144.71,144.69,3.4554]
[1728117205093,0.12502,144.71,144.7,3.4552]
[1728117205793,0.12502,144.71,144.7,8.3552]
[1728117210202,0.12502,144.71,144.7,16.8552]
[1728117213496,3.57862,144.77,144.74,3.4542]
[1728117213497,8.5,144.76,144.74,3.4542]
[1728117213895,3.57862,144.77,144.74,3.4542]
[1728117214104,0.12502,144.77,144.75,3.454]
[1728117214309,8.62502,144.77,144.75,3.454]
[1728117215310,0.12502,144.77,144.75,3.454]
[1728117215701,8.62502,144.77,144.75,3.454]
[1728117216109,8.62502,144.77,144.73,4.84]
[1728117216303,8.62502,144.77,144.74,3.4541]
[1728117218310,8.62502,144.77,144.73,4.84]
[1728117218311,8.5,144.75,144.73,4.84]
[1728117218520,8.5,144.75,144.71,4.84]
[1728117219310,8.5,144.75,144.72,3.4546]
[1728117219709,11.9539,144.76,144.72,3.4546]
[1728117221013,8.5,144.76,144.72,3.4546]
[1728117221214,8.5,144.76,144.71,13.34]
[1728117222314,8.5,144.76,144.72,3.4546]
[1728117222516,8.5,144.76,144.71,13.34]
[1728117222717,3.57852,144.77,144.71,13.34]
[1728117222911,12.07852,144.77,144.72,8.5]
[1728117223510,8.62502,144.77,144.74,3.4541]
[1728117223917,8.62502,144.77,144.72,8.5]
[1728117224113,0.12502,144.77,144.72,8.5]
[1728117224313,0.12502,144.77,144.73,8.5]
[1728117224617,0.12502,144.77,144.75,3.4538]
[1728117224920,0.12502,144.77,144.74,4.84]
[1728117225110,0.12502,144.77,144.75,8.5]
[1728117225411,0.12502,144.77,144.76,3.4538]
[1728117226721,8.62502,144.77,144.74,3.4541]
[1728117227014,8.5,144.75,144.73,4.84]
[1728117227213,0.12502,144.77,144.73,4.84]
[1728117227420,8.5,144.76,144.73,8.2944]
[1728117228008,11.9538,144.76,144.73,8.2944]
[1728117230017,11.9542,144.74,144.73,4.84]
[1728117230321,0.12502,144.77,144.7,4.84]
[1728117230518,8.5,144.75,144.7,4.84]
[1728117230715,0.12502,144.77,144.72,3.4547]
[1728117230920,8.5,144.75,144.72,3.4547]
[1728117232127,11.954,144.75,144.72,3.4547]
[1728117232521,0.12502,144.77,144.72,3.4547]